{"text_format":"3","workbook":"xlsx","n_sheets":1,"sheets":["Sheet1"],"read":"whole","date_system":"1900"}

{"sheet":"Sheet1","index":0,"n_rows":95,"n_cols":4,"rows_kept":95,"merged":[[0,0,0,3],[1,0,1,3],[2,0,2,3]]}
["Electric Basketball Backboard Height Adjusters"]
["RFP0523FACBHA"]
["Exhibit A"]
[]
["School","Gym","Description","Pricing"]
["LaSalle Springs Middle School","Main / A","Materials"]
[null,null,"Labor"]
[null,null,"Subtotal",{"$f":"IF(SUM(D6:D7)=0,\" \",SUM(D6:D7))","v":" "}]
[]
["Rockwood South Middle School","Main / A","Materials"]
[null,null,"Labor"]
[null,null,"Subtotal",{"$f":"IF(SUM(D10:D11)=0,\" \",SUM(D10:D11))","v":" "}]
[]
[null,"B","Materials"]
[null,null,"Labor"]
[null,null,"Subtotal",{"$f":"IF(SUM(D14:D15)=0,\" \",SUM(D14:D15))","v":" "}]
[]
["Rockwood Valley Middle School","Main / A","Materials"]
[null,null,"Labor"]
[null,null,"Subtotal",{"$f":"IF(SUM(D18:D19)=0,\" \",SUM(D18:D19))","v":" "}]
[]
["Selvidge Middle School","Main / A","Materials"]
[null,null,"Labor"]
[null,null,"Subtotal",{"$f":"IF(SUM(D22:D23)=0,\" \",SUM(D22:D23))","v":" "}]
[]
["Wildwood Middle School","Main / A","Materials"]
[null,null,"Labor"]
[null,null,"Subtotal",{"$f":"IF(SUM(D26:D27)=0,\" \",SUM(D26:D27))","v":" "}]
[]
[null,"B","Materials"]
[null,null,"Labor"]
[null,null,"Subtotal",{"$f":"IF(SUM(D30:D31)=0,\" \",SUM(D30:D31))","v":" "}]
[]
["Babler Elementary School","Main / A","Materials"]
[null,null,"Labor"]
[null,null,"Subtotal",{"$f":"IF(SUM(D34:D35)=0,\" \",SUM(D34:D35))","v":" "}]
[]
["Blevins Elementary School","Main / A","Materials"]
[null,null,"Labor"]
[null,null,"Subtotal",{"$f":"IF(SUM(D38:D39)=0,\" \",SUM(D38:D39))","v":" "}]
[]
["Bowles Elementary School","Main / A","Materials"]
[null,null,"Labor"]
[null,null,"Subtotal",{"$f":"IF(SUM(D42:D43)=0,\" \",SUM(D42:D43))","v":" "}]
[]
["Chesterfield Elementary School","Main / A","Materials"]
[null,null,"Labor"]
[null,null,"Subtotal",{"$f":"IF(SUM(D46:D47)=0,\" \",SUM(D46:D47))","v":" "}]
[]
["School","Gym","Description","Pricing"]
["Ellisville Elementary School","Main / A","Materials"]
[null,null,"Labor"]
[null,null,"Subtotal",{"$f":"IF(SUM(D51:D52)=0,\" \",SUM(D51:D52))","v":" "}]
[]
["Fairway Elementary School","Main / A","Materials"]
[null,null,"Labor"]
[null,null,"Subtotal",{"$f":"IF(SUM(D55:D56)=0,\" \",SUM(D55:D56))","v":" "}]
[]
["Geggie Elementary School","Main / A","Materials"]
[null,null,"Labor"]
[null,null,"Subtotal",{"$f":"IF(SUM(D59:D60)=0,\" \",SUM(D59:D60))","v":" "}]
[]
["Kehrs Mill Elementary School","Main / A","Materials"]
[null,null,"Labor"]
[null,null,"Subtotal",{"$f":"IF(SUM(D63:D64)=0,\" \",SUM(D63:D64))","v":" "}]
[]
["Pond Elementary School","Main / A","Materials"]
[null,null,"Labor"]
[null,null,"Subtotal",{"$f":"IF(SUM(D67:D68)=0,\" \",SUM(D67:D68))","v":" "}]
[]
["Ridge Meadows Elementary School","Main / A","Materials"]
[null,null,"Labor"]
[null,null,"Subtotal",{"$f":"IF(SUM(D71:D72)=0,\" \",SUM(D71:D72))","v":" "}]
[]
["Stanton Elementary School","Main / A","Materials"]
[null,null,"Labor"]
[null,null,"Subtotal",{"$f":"IF(SUM(D75:D76)=0,\" \",SUM(D75:D76))","v":" "}]
[]
["Uthoff Valley Elementary School","Main / A","Materials"]
[null,null,"Labor"]
[null,null,"Subtotal",{"$f":"IF(SUM(D79:D80)=0,\" \",SUM(D79:D80))","v":" "}]
[]
["Westridge Elementary School","Main / A","Materials"]
[null,null,"Labor"]
[null,null,"Subtotal",{"$f":"IF(SUM(D83:D84)=0,\" \",SUM(D83:D84))","v":" "}]
[]
["Wild Horse Elementary School","Main / A","Materials"]
[null,null,"Labor"]
[null,null,"Subtotal",{"$f":"IF(SUM(D87:D88)=0,\" \",SUM(D87:D88))","v":" "}]
[]
["Woerther Elementary School","Main / A","Materials"]
[null,null,"Labor"]
[null,null,"Subtotal",{"$f":"IF(SUM(D91:D92)=0,\" \",SUM(D91:D92))","v":" "}]
[]
[null,null,"Total",{"$f":"IF(SUM(D8,D12,D16,D20,D24,D28,D32,D36,D40,D44,D48,D53,D57,D61,D65,D69,D73,D77,D81,D85,D89,D93)=0,\" \",SUM(D8,D12,D16,D20,D24,D28,D32,D36,D40,D44,D48,D53,D57,D61,D65,D69,D73,D77,D81,D85,D89,D93))","v":" "}]